fUSD/lending_fUSD_20240805
["ID","MTS","AMOUNT","RATE_DAILY","PERIOD"]
[334199159,1722831045546,-200.0,0.00010959,2]
[334199161,1722831045556,-192.0,0.00010959,2]
[334199163,1722831045567,-1500.0,0.00010959,5]
[334199165,1722831045577,-250.0,0.00010959,2]
[334199167,1722831045588,-2000.0,0.00010959,2]
[334199169,1722831045597,-150.0,0.00010961,2]
[334199171,1722831045607,-150.0,0.00010968,2]
[334199173,1722831045617,-150.0,0.00010969,2]
[334199175,1722831045630,-150.0,0.00010969,2]
[334199177,1722831045640,-150.0,0.00010969,2]
[334199179,1722831045650,-150.0,0.00010971,2]
[334199181,1722831045660,-150.0,0.00010971,2]
[334199183,1722831045670,-150.0,0.00010972,2]
[334199185,1722831045680,-200.0,0.00010973,2]
[334199187,1722831045690,-150.0,0.00010973,2]
[334199189,1722831045700,-150.0,0.00010974,2]
[334199191,1722831045710,-1500.0,0.00010977,2]
[334199193,1722831045719,-150.0,0.0001098,2]
[334199195,1722831045729,-150.0,0.0001098,2]
[334199197,1722831045739,-1500.0,0.0001098,2]
[334199199,1722831045749,-150.0,0.00010981,2]
[334199201,1722831045759,-300.0,0.00010984,2]
[334199203,1722831045768,-150.0,0.00010986,2]
[334199205,1722831045778,-150.0,0.00010988,2]
[334199207,1722831045787,-150.0,0.0001099,2]
[334199209,1722831045798,-150.0,0.00010995,2]
[334199211,1722831045810,-150.0,0.00010995,2]
[334199213,1722831045821,-150.0,0.00010995,2]
[334199215,1722831045831,-300.0,0.00010996,2]
[334199217,1722831045842,-2303.91153198,0.00010997,2]
[334199219,1722831045853,-150.01,0.00010999,2]
[334199221,1722831045863,-2842.92422779,0.00010999,2]
[334199223,1722831045873,-150.0,0.00010999,2]
[334199225,1722831045889,-150.0,0.00010999,7]
[334199227,1722831045900,-161.16551366,0.00010999,7]
[334199229,1722831045910,-12746.63670779,0.00011,2]
[334199231,1722831045924,-8477.77228815,0.00011,2]
[334199234,1722831045937,-1154.11354626,0.00011,2]
[334199244,1722831046029,-21.30437374,0.00011,2]
[334199246,1722831046040,-822.33658662,0.00011,2]
[334199251,1722831046074,-559.40606601,0.00011,2]
[334199253,1722831046085,-1253.24849449,0.00011,2]
[334199255,1722831046097,-840.64392545,0.00011,2]
[334199371,1722831047703,-5163.16874351,0.00011,2]
[334199478,1722831048751,-375.76220257,0.00011,2]
[334199480,1722831048763,-1089.88117537,0.00011,2]
[334199482,1722831048774,-1383.40857251,0.00011,2]
[334199521,1722831049176,-864.61,0.0001037,2]
[334199523,1722831049186,-864.61,0.0001037,2]
[334199525,1722831049196,-768.57507697,0.0001037,2]
[334199527,1722831049208,-96.03492303,0.0001037,2]
[334199529,1722831049218,-906.40781846,0.00011,2]
[334199531,1722831049230,-133033.31325016,0.00011,2]
[334199533,1722831049241,-2240.93348543,0.00011,2]
[334199537,1722831049269,-25492.68481151,0.00011,2]
[334199539,1722831049280,-11173.27156439,0.00011,2]
[334199541,1722831049291,-470.08,0.00011,2]
[334199543,1722831049303,-2372.81520537,0.00011,2]
[334199546,1722831049321,-7599.63402511,0.00011,2]
[334199549,1722831049331,-361.14764114,0.00011,2]
[334199551,1722831049342,-353.65000002,0.00011,2]
[334199553,1722831049353,-1462.76416002,0.00011,2]
[334199555,1722831049364,-328.72001361,0.00011,2]
[334199557,1722831049375,-1774.86208729,0.00011,2]
[334199568,1722831049475,-864.61,0.0001037,2]
[334199570,1722831049485,-1148.74620071,0.00011,2]
[334199572,1722831049497,-2335.18041205,0.00011,2]
[334199575,1722831049509,-1491.15000001,0.00011,2]
[334199577,1722831049521,-14237.37580089,0.00011,2]
[334199579,1722831049532,-1313.87865291,0.00011,2]
[334199581,1722831049543,-824.59977352,0.00011,2]
[334200287,1722831063965,7560.5077,9.532e-05,2]
[334200288,1722831144590,244.93615065,9.532e-05,2]
[334200289,1722831147100,871.75845966,9.532e-05,2]
[334200290,1722831159798,950.15,8.519e-05,2]
[334200291,1722831161022,425.65743734,9.532e-05,2]
[334200292,1722831161980,300.0,9.532e-05,2]
[334200293,1722831172279,4302.44839201,9.532e-05,2]
[334200294,1722831173039,363.80792903,9.532e-05,2]
[334200295,1722831178430,1370.57775499,9.532e-05,2]
[334200296,1722831194584,291.43745391,9.532e-05,2]
[334200301,1722831215553,307.6030393,0.00016999,40]
[334200305,1722831328855,552.6832929,0.00016999,50]
[334200306,1722831422505,188.53,9.348e-05,2]
[334200307,1722831424269,552.6832929,0.00016999,50]
[334200308,1722831430783,155.52,9.275e-05,2]
[334200310,1722831435111,619.27,9.219e-05,2]
[334200313,1722831442848,400.0,9.221e-05,2]
[334200314,1722831476774,552.6832929,0.00016,50]
[334200315,1722831490698,250.0,9.142e-05,2]
[334200316,1722831523820,661.69097874,0.00016,50]
[334200317,1722831545823,2711.51,9.148e-05,2]
[334200321,1722831700850,902.64,8.219e-05,2]
[334200322,1722831703130,23900.0,9.14e-05,2]
[334200326,1722831907154,834.76,9.217e-05,2]
[334200327,1722831919934,1888.85550188,9e-05,2]
[334200328,1722831956050,19263.88327577,6.94e-05,2]
[334200329,1722831969154,275.58,9.152e-05,2]
[334200330,1722831986491,680.0,9.152e-05,2]
[334200331,1722832011416,-422.408079,9.878e-05,2]
[334200332,1722832011443,-155.07469671,9.928e-05,2]
[334200333,1722832011478,-171.06,9.936e-05,2]
[334200334,1722832011506,-155.07469653,9.942e-05,2]
[334200335,1722832011533,-155.07469653,9.956e-05,2]
[334200336,1722832011565,-300.0,9.968e-05,2]
[334200337,1722832011594,-42.81601059,9.969e-05,2]
[334200338,1722832032338,-1300.0,9.956e-05,2]
[334200339,1722832033419,1355.75,9.255e-05,2]
[334200341,1722832062410,250.0,9.255e-05,2]
[334200357,1722832196737,23900.0,9.25e-05,2]
[334200358,1722832198309,160946.0,0.00025,60]
[334200360,1722832222642,152197.32,0.00025,60]
[334200375,1722832232183,-112.25868594,9.969e-05,2]
[334200377,1722832232194,-155.07469653,9.983e-05,2]
[334200379,1722832232203,-155.07469653,9.997e-05,2]
[334200380,1722832232214,-300.0,0.0001001,2]
[334200382,1722832232224,-235.16772105,0.0001001,2]
[334200384,1722832232240,-64.83227895,0.0001001,2]
[334200385,1722832232250,-42922.55475354,0.00010011,2]
[334200387,1722832232259,-155.07469653,0.00010011,2]
[334200388,1722832232269,-499.99,0.00010011,2]
[334200389,1722832232278,-155.07469653,0.00010025,2]
[334200390,1722832232287,-155.07469653,0.00010038,2]
[334200391,1722832232297,-155.07469653,0.00010052,2]
[334200392,1722832232306,-155.07469653,0.00010066,2]
[334200393,1722832232316,-155.07469653,0.0001008,2]
[334200394,1722832232325,-155.07469653,0.00010093,2]
[334200395,1722832232335,-155.07469653,0.00010107,2]
[334200396,1722832232344,-155.07469653,0.00010121,2]
[334200397,1722832232353,-155.07469653,0.00010135,2]
[334200398,1722832232363,-155.07469653,0.00010149,2]
[334200399,1722832232372,-155.07469653,0.00010162,2]
[334200400,1722832232382,-155.07469653,0.00010176,2]
[334200401,1722832232391,-150.0,0.00010189,2]
[334200402,1722832232400,-155.07469653,0.0001019,2]
[334200403,1722832232409,-323.31176038,0.0001019,2]
[334200404,1722832232419,-1188.8746,0.0001019,2]
[334200405,1722832232429,-1000.0,0.0001019,2]
[334200406,1722832232438,-2500.0,0.0001019,2]
[334200407,1722832232447,-8535.80532064,0.00010289,2]
[334200408,1722832232457,-30320.41159597,0.0001029,2]
[334200409,1722832232500,-21424.43762948,0.0001029,2]
[334200410,1722832232512,-5180.24440452,0.0001029,2]
[334200412,1722832232533,-327.09,0.0001029,2]
[334200415,1722832232545,-525.03520891,0.0001029,2]
[334200447,1722832238345,-42222.78116112,0.0001029,2]
[334200449,1722832238355,-5377.70533197,0.0001029,2]
[334200452,1722832238378,-3331.41697924,0.0001029,2]
[334200453,1722832238389,-3175.40155286,0.0001029,2]
[334200454,1722832238403,-5406.64754168,0.0001029,2]
[334200455,1722832239758,-280.70355093,0.0001029,2]
[334200456,1722832239798,-8916.93004554,0.0001029,2]
[334200457,1722832239811,-532.34426547,0.0001029,2]
[334200460,1722832240334,-1842.75415424,0.0001019,2]
[334200461,1722832240381,-598.7103,0.0001019,2]
[334200462,1722832241980,-58.53554576,0.0001019,2]
[334200463,1722832241990,-302.80264324,0.0001019,2]
[334200464,1722832242001,-382.51937409,0.0001019,2]
[334200465,1722832242039,-730.6082,0.0001019,2]
[334200493,1722832243040,-689.9021,0.0001019,2]
[334200503,1722832243099,-37943.78493244,0.0001019,2]
[334200505,1722832243110,-1919.54671865,0.0001019,2]
[334200507,1722832243122,-935.12,0.0001019,2]
[334200541,1722832243765,-815.80920835,0.0001019,2]
[334200542,1722832243797,-3274.08,0.0001019,2]
[334200543,1722832243808,-1163.34309977,0.0001019,2]
[334200544,1722832243823,-2412.26987367,0.0001019,2]
[334200545,1722832243844,-1636.11,0.0001019,2]
[334200546,1722832243901,-1178.5,0.0001019,2]
[334200547,1722832243931,-7164.02098676,0.0001019,2]
[334200549,1722832247591,-353.504,0.0001019,2]
[334200612,1722832248699,-891.94150928,0.0001019,2]
[334200615,1722832248720,-1143.0733412,0.0001019,2]
[334200617,1722832248731,-442.82396974,0.0001019,2]
[334200702,1722832325306,857.5,8.219e-05,2]
[334200703,1722832396827,692.80235,8.219e-05,2]
[334200704,1722832397572,4066.57176164,8.219e-05,2]
[334200705,1722832406655,168.50858024,8.219e-05,2]
[334200711,1722832561805,-515.032164,9.708e-05,2]
[334200712,1722832561830,-250.0,9.757e-05,2]
[334200713,1722832720106,314.567836,9.661e-05,2]
[334200716,1722832828209,-300.0,9.66e-05,2]
[334200717,1722832828231,-399.4,9.661e-05,2]
[334200718,1722832828253,-19300.6,9.661e-05,2]
[334200719,1722832890147,814.62,8.219e-05,2]
[334200720,1722832918958,-264.98,9.661e-05,2]
[334200721,1722832934483,544.0,9.516e-05,2]
[334200722,1722832939778,1701.71,9.479e-05,2]
[334200723,1722832961059,677.87,9.436e-05,2]
[334200724,1722833012727,-2655.0,9.661e-05,2]
[334200727,1722833099108,250.0,9.465e-05,2]
[334200728,1722833110037,724.76,9.465e-05,2]
[334200729,1722833110221,724.76,9.467e-05,2]
[334200730,1722833110362,724.76,9.47e-05,2]
[334200731,1722833110446,724.76,9.472e-05,2]
[334200732,1722833110526,724.76,9.475e-05,2]
[334200733,1722833110592,724.76,9.477e-05,2]
[334200734,1722833110651,724.76,9.48e-05,2]
[334200735,1722833116308,724.76,9.482e-05,2]
[334200736,1722833116532,724.76,9.485e-05,2]
[334200737,1722833116735,724.76,9.487e-05,2]
[334200738,1722833117197,724.76,9.49e-05,2]
[334200739,1722833117262,724.76,9.492e-05,2]
[334200740,1722833117345,724.76,9.495e-05,2]
[334200741,1722833117527,724.76,9.497e-05,2]
[334200742,1722833117781,724.76,9.5e-05,2]
[334200743,1722833117943,724.76,9.502e-05,2]
[334200744,1722833118160,724.76,9.505e-05,2]
[334200745,1722833118442,724.76,9.507e-05,2]
[334200746,1722833118614,724.76,9.51e-05,2]
[334200747,1722833118822,724.76,9.512e-05,2]
[334200748,1722833139909,1000.0,0.00017,30]
[334200750,1722833160622,3189.4,0.00025,60]
[334200751,1722833181319,2331.22,9.389e-05,2]
[334200752,1722833181348,21568.78,9.389e-05,2]
[334200755,1722833302045,150.0,9.36e-05,2]
[334200756,1722833302068,150.0,9.36e-05,2]
[334200757,1722833302089,200.0,9.36e-05,2]
[334200761,1722833372774,12.95032791,8.219e-05,2]
[334200762,1722833372795,150.0,8.219e-05,2]
[334200763,1722833372816,150.0,8.219e-05,2]
[334200764,1722833372839,199.98270623,8.219e-05,2]
[334200765,1722833372863,260.94696586,8.219e-05,2]
[334200768,1722833386623,217.41357036,9.36e-05,2]
[334200771,1722833403531,282.56913587,9.36e-05,2]
[334200787,1722833432724,-172.53,9.661e-05,2]
[334200788,1722833432734,-165.24087916,9.835e-05,2]
[334200789,1722833432848,-377.277724,9.835e-05,2]
[334200790,1722833432860,-908.25139684,9.835e-05,2]
[334200791,1722833432869,-123.90973316,9.839e-05,2]
[334200792,1722833432880,-2254.84289707,9.839e-05,2]
[334200793,1722833432890,-1742.66210929,9.842e-05,2]
[334200794,1722833432899,-2378.75263023,9.842e-05,2]
[334200795,1722833432908,-275.6,9.843e-05,2]
[334200796,1722833432918,-456.0,9.858e-05,2]
[334200797,1722833432927,-279.4759,0.0001009,2]
[334200798,1722833432937,-150.0,0.0001011,2]
[334200799,1722833432946,-499.99,0.0001011,2]
[334200800,1722833432956,-300.0,0.00010128,2]
[334200801,1722833432966,-515.032164,0.00010129,2]
[334200802,1722833432978,-150.0,0.00010189,2]
[334200803,1722833432988,-2500.0,0.00010189,2]
[334200804,1722833432997,-288.23391433,0.0001019,2]
[334200805,1722833433006,-181.72444059,0.0001019,2]
[334200807,1722833433016,-412.90303818,0.0001019,2]
[334200809,1722833433025,-36620.24004281,0.0001019,2]
[334200810,1722833433035,-500.0,0.0001019,2]
[334200811,1722833433044,-1000.0,0.0001019,2]
[334200812,1722833433053,-10837.8726,0.0001019,2]
[334200813,1722833433062,-320.84355,0.000102,2]
[334200814,1722833433072,-320.84356,0.0001021,2]
[334200815,1722833433081,-320.84355,0.0001025,2]
[334200816,1722833433091,-749.33,0.00010279,2]
[334200817,1722833433100,-749.33,0.00010279,2]
[334200818,1722833433110,-749.33,0.00010279,2]
[334200819,1722833433120,-749.33,0.00010279,2]
[334200820,1722833433129,-749.33,0.00010279,2]
[334200821,1722833433139,-749.33,0.00010279,2]
[334200822,1722833433148,-749.33,0.00010279,2]
[334200823,1722833433157,-749.33,0.00010279,2]
[334200824,1722833433166,-749.33,0.00010279,2]
[334200825,1722833433176,-749.33,0.00010279,2]
[334200826,1722833433185,-749.33,0.00010279,2]
[334200827,1722833433194,-749.33,0.00010279,2]
[334200828,1722833433203,-749.33,0.00010279,2]
[334200829,1722833433213,-749.33,0.00010279,2]
[334200830,1722833433227,-749.33,0.00010279,2]
[334200831,1722833433236,-749.33,0.00010279,2]
[334200832,1722833433245,-749.33,0.00010279,2]
[334200833,1722833433254,-749.33,0.00010279,2]
[334200834,1722833433263,-749.33,0.00010279,2]
[334200835,1722833433273,-749.33,0.00010279,2]
[334200836,1722833433282,-749.33,0.00010279,2]
[334200837,1722833433292,-749.33,0.00010279,2]
[334200838,1722833433302,-512.9503282,0.00010283,2]
[334200839,1722833433312,-3732.6729074,0.00010283,2]
[334200840,1722833433322,-14735.0375198,0.00010289,2]
[334200841,1722833433331,-91402.6813333,0.00010289,2]
[334200842,1722833433341,-21093.7952107,0.00010289,2]
[334200843,1722833433350,-320.84356,0.0001029,2]
[334200844,1722833433360,-320.84355,0.0001029,2]
[334200845,1722833433370,-275.58,0.00010296,2]
[334200846,1722833433379,-1006.0,0.000103,2]
[334200847,1722833433388,-1017.0,0.000103,2]
[334200848,1722833433398,-320.84356,0.0001033,2]
[334200849,1722833433408,-320.84355,0.0001037,2]
[334200850,1722833433418,-1000.0,0.000104,2]
[334200851,1722833433428,-1020.0,0.000104,2]
[334200852,1722833433438,-1000.0,0.000104,2]
[334200853,1722833433448,-1150.0,0.000104,2]
[334200854,1722833433458,-155.52,0.00010434,2]
[334200855,1722833433467,-773.88,0.0001044,2]
[334200856,1722833433483,-368.01704046,0.00010445,2]
[334200857,1722833433492,-420.02583415,0.00010582,2]
[334200858,1722833433502,-544.0,0.00010706,2]
[334200859,1722833433512,-150.0,0.00010727,2]
[334200860,1722833433522,-150.0,0.00010729,2]
[334200861,1722833433532,-150.0,0.00010736,2]
[334200862,1722833433543,-150.0,0.00010736,2]
[334200863,1722833433554,-150.0,0.0001074,2]
[334200864,1722833433567,-150.0,0.00010742,2]
[334200865,1722833433576,-150.0,0.00010744,2]
[334200866,1722833433586,-150.0,0.0001075,2]
[334200867,1722833433595,-150.0,0.00010754,2]
[334200868,1722833433605,-150.0,0.00010754,2]
[334200869,1722833433615,-150.0,0.00010756,2]
[334200870,1722833433625,-150.0,0.0001076,2]
[334200871,1722833433635,-150.0,0.0001076,2]
[334200872,1722833433646,-150.0,0.00010767,2]
[334200873,1722833433656,-233.83150846,0.00010778,2]
[334200874,1722833433666,-150.0,0.00010785,2]
[334200875,1722833433676,-150.0,0.00010788,2]
[334200876,1722833433685,-150.0,0.00010794,2]
[334200877,1722833433694,-150.0,0.00010804,2]
[334200878,1722833433704,-150.0,0.00010804,2]
[334200879,1722833433714,-150.0,0.00010807,2]
[334200880,1722833433729,-150.0,0.00010809,2]
[334200881,1722833433739,-150.0,0.00010811,2]
[334200882,1722833433749,-150.0,0.00010817,2]
[334200883,1722833433758,-150.0,0.00010822,2]
[334200884,1722833433768,-150.0,0.00010823,2]
[334200885,1722833433777,-150.0,0.00010826,2]
[334200886,1722833433787,-150.0,0.00010832,2]
[334200887,1722833433796,-150.0,0.00010833,2]
[334200888,1722833433805,-150.0,0.00010838,2]
[334200889,1722833433815,-150.0,0.00010842,2]
[334200890,1722833433825,-150.0,0.00010854,2]
[334200891,1722833433835,-150.0,0.00010865,2]
[334200892,1722833433845,-150.0,0.00010871,2]
[334200893,1722833433856,-150.0,0.00010897,2]
[334200894,1722833433865,-300.0,0.00010898,2]
[334200895,1722833433875,-499.36766,0.000109,2]
[334200896,1722833433885,-10000.0,0.000109,2]
[334200897,1722833433895,-168.57278731,0.000109,2]
[334200898,1722833433906,-1000.0,0.000109,2]
[334200899,1722833433917,-1000.0,0.000109,2]
[334200900,1722833433927,-1000.0,0.000109,2]
[334200901,1722833433937,-1041.0,0.000109,2]
[334200902,1722833433947,-1000.0,0.000109,2]
[334200903,1722833433957,-1000.0,0.000109,2]
[334200904,1722833433967,-1000.0,0.000109,2]
[334200905,1722833433980,-1000.0,0.000109,2]
[334200906,1722833433990,-500.0,0.000109,2]
[334200907,1722833433999,-7500.0,0.000109,2]
[334200908,1722833434009,-150.0,0.00010904,2]
[334200909,1722833434019,-420.02583415,0.0001091,2]
[334200910,1722833434029,-500.0,0.00010911,2]
[334200911,1722833434039,-500.0,0.00010911,2]
[334200912,1722833434050,-500.0,0.00010912,2]
[334200913,1722833434059,-500.0,0.00010912,2]
[334200914,1722833434069,-500.0,0.00010912,2]
[334200915,1722833434079,-500.0,0.00010912,2]
[334200916,1722833434089,-500.0,0.00010912,2]
[334200917,1722833434099,-150.0,0.00010918,2]
[334200918,1722833434108,-150.0,0.00010918,2]
[334200919,1722833434117,-150.0,0.00010925,2]
[334200920,1722833434127,-150.0,0.00010929,2]
[334200921,1722833434136,-150.0,0.0001093,2]
[334200922,1722833434146,-150.0,0.00010935,2]
[334200923,1722833434155,-150.0,0.00010937,2]
[334200924,1722833434164,-150.0,0.00010946,2]
[334200925,1722833434173,-150.0,0.00010949,2]
[334200926,1722833434182,-150.0,0.00010955,2]
[334200927,1722833434192,-150.0,0.00010957,2]
[334200928,1722833434201,-200.0,0.00010959,2]
[334200929,1722833434210,-200.0,0.00010959,2]
[334200930,1722833434222,-250.0,0.00010959,2]
[334200931,1722833434232,-1500.0,0.00010959,5]
[334200932,1722833434241,-2000.0,0.00010959,2]
[334200933,1722833434251,-150.0,0.00010961,2]
[334200934,1722833434260,-150.0,0.00010962,2]
[334200935,1722833434269,-150.0,0.00010962,2]
[334200936,1722833434280,-150.0,0.00010962,2]
[334200937,1722833434289,-150.0,0.00010963,2]
[334200938,1722833434298,-150.0,0.00010965,2]
[334200939,1722833434307,-150.0,0.00010968,2]
[334200940,1722833434317,-200.0,0.00010973,2]
[334200941,1722833434327,-150.0,0.00010976,2]
[334200942,1722833434337,-150.0,0.00010986,2]
[334200943,1722833434347,-91223.13622037,0.00010998,2]
[334200944,1722833434361,-442.83202275,0.00010998,2]
[334200945,1722833434389,-1991.9168164,0.00010998,2]
[334200946,1722833434401,-360.35116936,0.00010998,2]
[334200947,1722833434417,-689.30241408,0.00010998,2]
[334200948,1722833434428,-650.40807414,0.00010998,2]
[334200976,1722833438307,-2235.46465176,0.00010998,2]
[334200982,1722833439819,-4603.08190485,0.00010998,2]
[334200983,1722833439833,-336.66612519,0.00010998,2]
[334200984,1722833439846,-273.3,0.00010998,2]
[334200985,1722833439960,-2440.62097314,0.00010998,2]
[334201009,1722833443036,-338.93,0.00010439,2]
[334201010,1722833443046,-201.14,0.00010998,2]
[334201016,1722833443097,-863.3110572,0.00010998,2]
[334201018,1722833443109,-14719.86313596,0.00010998,2]
[334201023,1722833443143,-3230.5506448,0.00010998,2]
[334201025,1722833443154,-1349.715,0.00010998,2]
[334201041,1722833443973,-11263.24104225,0.00010998,2]
[334201042,1722833443987,-211.85566963,0.00010999,2]
[334201043,1722833443997,-1304.84896795,0.00010999,2]
[334201044,1722833444007,-2842.92422778,0.00010999,2]
[334201045,1722833444016,-150.0,0.00010999,2]
[334201046,1722833444025,-2608.0,0.00011,2]
[334201047,1722833444035,-35609.13009239,0.00011,2]
[334201048,1722833444046,-37392.693308,0.00011,2]
[334201049,1722833444083,-68806.40400001,0.00011,2]
[334201050,1722833444093,-2365.81996177,0.00011,2]
[334201074,1722833448341,-199.82,0.0001018,2]
[334201075,1722833448352,-199.82,0.0001018,2]
[334201076,1722833448362,-199.82,0.0001018,2]
[334201077,1722833448371,-199.82,0.0001018,2]
[334201078,1722833448381,-199.82,0.00010269,2]
[334201079,1722833448390,-199.82,0.00010269,2]
[334201080,1722833448400,-199.82,0.00010269,2]
[334201081,1722833448410,-199.82,0.00010269,2]
[334201082,1722833448419,-199.82,0.00010279,2]
[334201083,1722833448429,-199.82,0.00010279,2]
[334201085,1722833448441,-199.82,0.00010279,2]
[334201087,1722833448450,-101.91840715,0.00010279,2]
[334201089,1722833448462,-97.90159285,0.00010279,2]
[334201091,1722833448471,-199.82,0.00010279,2]
[334201093,1722833448485,-199.82,0.00010279,2]
[334201095,1722833448494,-199.82,0.00010279,2]
[334201097,1722833448504,-199.82,0.00010279,2]
[334201099,1722833448514,-199.82,0.00010279,2]
[334201101,1722833448523,-1110.78889595,0.00010778,2]
[334201103,1722833448533,-323.31176038,0.000109,2]
[334201105,1722833448543,-20950.75061056,0.00011,2]
[334201110,1722833448580,-199.82,0.00010279,2]
[334201112,1722833448590,-6323.91094259,0.00011,2]
[334201114,1722833448601,-5511.2815,0.00011,2]
[334201116,1722833448617,-1140.36219378,0.00011,2]
[334201119,1722833448631,-1215.12980066,0.00011,2]
[334201254,1722833601452,2548.7987359,0.00025,60]
[334201255,1722833614631,500.0,0.00024932,120]
[334201256,1722833872979,158.43,8.045e-05,2]
[334201257,1722833939468,345.47505909,8.045e-05,2]
[334201258,1722833939718,2290.29726606,8.045e-05,2]
[334201259,1722833942182,1268.17340653,8.045e-05,2]
[334201260,1722834053827,732.53,8.219e-05,2]
[334201261,1722834207335,500.0,0.0002499,120]
[334201274,1722834548743,695.9,8.219e-05,2]
[334201301,1722834633743,-2016.51,9.879e-05,2]
[334201303,1722834633754,-2378.75263025,9.879e-05,2]
[334201305,1722834633764,-169.46,9.91e-05,2]
[334201306,1722834633775,-300.0,9.923e-05,2]
[334201307,1722834633785,-178.0,9.923e-05,2]
[334201308,1722834633794,-526.30586485,9.962e-05,2]
[334201309,1722834633802,-250.0,9.981e-05,2]
[334201310,1722834633812,-165.35,0.00010037,2]
[334201311,1722834633821,-172.53,0.00010062,2]
[334201312,1722834633830,-150.0,0.00010088,2]
[334201313,1722834633839,-1322.7341,0.00010089,2]
[334201314,1722834633849,-5647.5896,0.00010089,2]
[334201315,1722834633859,-2156.64172552,0.00010089,2]
[334201316,1722834633871,-1905.69340297,0.00010089,2]
[334201317,1722834633883,-1070.57254291,0.00010089,2]
[334201318,1722834633895,-395.66256488,0.00010089,2]
[334201319,1722834634263,-429.8742519,0.00010089,2]
[334201320,1722834634275,-441.08533386,0.00010089,2]
[334201321,1722834634287,-1300.99,0.00010089,2]
[334201326,1722834634382,-878.36648687,0.00010089,2]
[334201327,1722834634395,-378.25609224,0.00010089,2]
[334201328,1722834634407,-1728.39618865,0.00010089,2]
[334201329,1722834634419,-2639.4614102,0.00010089,2]
[334201330,1722834634429,-157.7236,0.00010089,2]
[334201331,1722834634439,-102.8149898,0.00010188,2]
[334201340,1722834638377,-536.79,9.821e-05,2]
[334201341,1722834638440,-11385.47606975,9.821e-05,2]
[334201342,1722834638452,-2123.66517058,9.821e-05,2]
[334201343,1722834638465,-547.92524576,9.821e-05,2]
[334201345,1722834639859,-9306.14351391,9.821e-05,2]
[334201346,1722834639871,-397.1750102,0.00010188,2]
[334201347,1722834639882,-500.0,0.00010189,2]
[334201348,1722834639893,-1000.0,0.00010189,2]
[334201349,1722834639904,-100000.0,0.00010189,2]
[334201350,1722834639915,-219158.642,0.00010189,2]
[334201351,1722834639926,-1000.0,0.00010414,2]
[334201352,1722834639937,-695.9,0.00010471,2]
[334201353,1722834639954,-234.65,0.00010625,2]
[334201354,1722834639967,-10000.0,0.000109,2]
[334201355,1722834639992,-1000.0,0.000109,2]
[334201356,1722834640003,-239.99441156,0.000109,2]
[334201357,1722834640015,-168.57278728,0.000109,2]
[334201358,1722834640028,-7500.0,0.000109,2]
[334201359,1722834640040,-185.55317954,0.000109,2]
[334201360,1722834640051,-185.55317953,0.000109,2]
[334201361,1722834640063,-185.55317953,0.000109,2]
[334201362,1722834640074,-707.53062404,0.000109,2]
[334201363,1722834640084,-323.31176038,0.000109,2]
[334201364,1722834640094,-4514.81474507,0.000109,2]
[334201365,1722834640105,-212.0,0.00010915,2]
[334201366,1722834640114,-500.0,0.00010959,2]
[334201367,1722834640124,-200.0,0.00010959,2]
[334201368,1722834640135,-1500.0,0.00010959,5]
[334201369,1722834640145,-250.0,0.00010959,2]
[334201370,1722834640155,-757.01,0.00010959,2]
[334201371,1722834640166,-153.31,0.0001099,2]
[334201372,1722834640177,-2389.0,0.00011,2]
[334201373,1722834640187,-500.0,0.00011,2]
[334201374,1722834640198,-678321.00223076,0.00011,2]